bitfinex-derivatives/quotes_BTCF0:USTF0_20210104
["timestamp","ask_amount","ask_price","bid_price","bid_amount"]
[1609762707227,0.70530285,31036.0,31024.0,3.7303]
[1609762707528,0.12785,31036.0,31024.0,3.7303]
[1609762708529,0.12785,31036.0,31035.0,0.13632608]
[1609762708729,0.04095,31036.0,31035.0,0.13632608]
[1609762708931,0.57794414,31042.0,31035.0,0.13632608]
[1609762710430,0.57794414,31042.0,31041.0,0.13632608]
[1609762710632,0.13632608,31045.0,31041.0,0.13632608]
[1609762711032,0.57544797,31063.0,31041.0,0.13632608]
[1609762711533,0.57544797,31063.0,31044.0,0.6672]
[1609762711735,0.57544797,31063.0,31041.0,0.13632608]
[1609762712136,0.11869,31063.0,31044.0,3.8676]
[1609762712534,0.13632608,31051.0,31050.0,0.13632608]
[1609762712935,0.11869,31063.0,31050.0,0.13632608]
[1609762713536,0.11869,31063.0,31050.0,0.25960608]
[1609762713735,0.57247062,31077.0,31050.0,0.25960608]
[1609762714537,0.13632608,31056.0,31055.0,0.13632608]
[1609762714935,0.13632608,31056.0,31050.0,0.12328]
[1609762715135,3.715,31052.0,31038.0,0.12045]
[1609762716436,0.13632608,31039.0,31020.0,4.295]
[1609762716838,0.13632608,31039.0,31016.0,0.23182608]
[1609762717037,0.13632608,31039.0,31016.0,0.13632608]
[1609762717237,0.13356,31044.0,31010.0,3.8312]
[1609762717439,0.13356,31044.0,31010.0,3.94782]
[1609762717938,0.13356,31044.0,31011.0,0.0958]
[1609762718339,0.13356,31044.0,31010.0,0.11662]
[1609762718739,4.2709,31051.0,31010.0,0.11662]
[1609762718938,0.12071,31058.0,31010.0,0.11662]
[1609762719138,4.6907,31041.0,31010.0,0.11662]
[1609762720939,0.10186,31050.0,31010.0,0.11662]
[1609762722442,0.10186,31050.0,31014.0,0.13632608]
[1609762722443,0.13632608,31016.0,31014.0,0.13632608]
[1609762722844,0.0954,31048.0,31014.0,0.13632608]
[1609762724151,0.7088,31047.0,31010.0,0.10357]
[1609762724346,0.0954,31048.0,31010.0,0.10357]
[1609762724548,0.13632608,31013.0,31010.0,0.10357]
[1609762726549,0.13632608,31013.0,31010.0,0.23989608]
[1609762727052,0.13632608,31013.0,31010.0,0.10357]
[1609762727654,0.12632608,31013.0,30994.0,4.7039]
[1609762727855,0.12632608,31013.0,30995.0,0.0962]
[1609762728260,0.12632608,31013.0,30995.0,0.14558]
[1609762728654,0.11137,31037.0,31012.0,0.13632608]
[1609762728854,0.11137,31037.0,31012.0,0.25241608]
[1609762729655,0.2871,31057.0,31013.0,0.01]
[1609762729856,4.1032,31036.0,31013.0,0.01]
[1609762730055,0.14367,31035.0,31013.0,0.01]
[1609762730254,0.0954,31034.0,31013.0,0.01]
[1609762730655,0.14367,31035.0,31013.0,0.01]
[1609762731255,0.13632608,31014.0,31013.0,0.01]
[1609762733759,4.1032,31036.0,31013.0,0.01]
[1609762735461,0.13632608,31014.0,31013.0,0.01]
[1609762737163,0.12632608,31014.0,31013.0,0.01]
[1609762738164,5.4006,31021.0,31013.0,0.01]
[1609762739464,5.53692608,31021.0,31020.0,0.13632608]
[1609762739863,5.53692608,31021.0,31020.0,0.24664608]
[1609762740663,0.2921,31056.0,31020.0,0.24664608]
[1609762740863,0.2921,31056.0,31020.0,0.34304608]
[1609762741463,0.13632608,31032.0,31030.0,0.13632608]
[1609762742066,0.13632608,31032.0,31020.0,0.11032]
[1609762743065,0.13632608,31032.0,31021.0,0.0957]
[1609762743265,0.13632608,31032.0,31020.0,0.11032]
[1609762743467,0.13632608,31021.0,31020.0,0.24664608]
[1609762744066,4.5172,31037.0,31020.0,0.24664608]
[1609762744267,0.10256,31044.0,31020.0,0.24664608]
[1609762744668,0.12071,31058.0,31020.0,0.24664608]
[1609762744866,0.59445153,31059.0,31020.0,0.11032]
[1609762745168,0.59445153,31059.0,31018.0,5.1432]
[1609762745568,0.69325153,31059.0,31018.0,5.1432]
[1609762746470,0.01958506,31051.0,31018.0,5.1432]
[1609762747473,0.01958506,31051.0,31040.0,0.13632608]
[1609762747673,0.01958506,31051.0,31040.0,0.25969608]
[1609762748279,0.01958425,31056.0,31040.0,0.25969608]
[1609762748473,0.0974,31055.0,31040.0,0.25969608]
[1609762748674,0.01958425,31056.0,31040.0,0.25969608]
[1609762749377,0.13632608,31041.0,31040.0,0.25969608]
[1609762749777,0.13632608,31041.0,31040.0,0.12337]
[1609762752683,0.13632608,31041.0,31026.0,0.13632608]
[1609762753483,0.01958194,31055.0,31032.0,0.13632608]
[1609762753683,0.01958194,31055.0,31032.0,0.27610608]
[1609762754084,0.01958194,31055.0,31032.0,0.13978]
[1609762754286,4.74011727,31056.0,31032.0,0.13978]
[1609762755088,0.01958163,31055.0,31032.0,0.13978]
[1609762755487,0.01958163,31055.0,31040.0,0.13632608]
[1609762755688,0.01958163,31055.0,31041.0,0.0965]
[1609762756086,0.01958163,31055.0,31040.0,0.29478608]
[1609762756987,0.01958163,31055.0,31041.0,0.0953]
[1609762757187,0.01958163,31055.0,31040.0,0.29478608]
[1609762757389,0.01958163,31055.0,31045.0,0.13632608]
[1609762757688,0.01958163,31055.0,31040.0,0.15846]
[1609762758494,0.01967222,31054.0,31040.0,0.15846]
[1609762759594,0.01967222,31054.0,31051.0,0.13632608]
[1609762759794,0.60380258,31056.0,31051.0,0.13632608]
[1609762760197,0.60380258,31056.0,31054.0,0.0195]
[1609762761295,0.0196578,31059.0,31054.0,0.0195]
[1609762761494,0.44094244,31061.0,31054.0,0.0195]
[1609762762295,0.20984244,31061.0,31054.0,0.116]
[1609762762494,0.7060166,31064.0,31054.0,0.116]
[1609762762696,0.97322465,31070.0,31054.0,0.116]
[1609762763096,0.97322465,31070.0,31054.0,0.0195]
[1609762763296,0.97322465,31070.0,31056.0,0.0104]
[1609762763496,0.97322465,31070.0,31069.0,0.13632608]
[1609762763898,0.07868641,33176.0,31069.0,0.13632608]
[1609762763899,0.97259992,31083.0,31069.0,0.13632608]
[1609762765300,0.97394861,31084.0,31069.0,0.13632608]
[1609762765498,0.97394861,31084.0,31073.0,0.13632608]
[1609762767302,0.97138153,31089.0,31073.0,0.13632608]
[1609762767500,0.13632608,31079.0,31073.0,0.13632608]
[1609762769501,0.13664998,31074.0,31073.0,0.13632608]
[1609762773407,0.0003239,31074.0,31073.0,0.13632608]
[1609762773608,0.0003239,31074.0,31073.0,0.80202608]
[1609762775811,0.0003239,31074.0,31073.0,0.89762608]
[1609762776011,0.0003239,31074.0,31073.0,0.80202608]
[1609762777214,0.0003239,31074.0,31073.0,0.13632608]
[1609762777413,0.2889,31106.0,31078.0,4.0987]
[1609762777614,0.2889,31106.0,31080.0,0.13632608]
[1609762777813,0.07868641,31081.0,31080.0,0.13632608]
[1609762779714,0.07868641,31081.0,31080.0,0.23162608]
[1609762780916,0.06138641,31081.0,31080.0,0.23162608]
[1609762781116,0.02508641,31081.0,31080.0,0.23162608]
[1609762781317,5.63297943,31123.0,31080.0,0.23162608]
[1609762781520,4.6682,31123.0,31080.0,0.0953]
[1609762782520,4.6682,31123.0,31100.0,0.13632608]
[1609762783217,4.3831,31123.0,31100.0,0.13632608]
[1609762784618,0.84882143,31127.0,31108.0,0.13632608]
[1609762785120,0.94417753,31128.0,31108.0,0.13632608]
[1609762785320,0.84877753,31128.0,31094.0,0.13115]
[1609762785519,0.97279753,31128.0,31094.0,0.13115]
[1609762786521,0.13632608,31117.0,31116.0,0.13632608]
[1609762786722,0.28999608,31117.0,31116.0,0.13632608]
[1609762788023,0.15367,31117.0,31116.0,0.13632608]
[1609762790029,0.12402,31128.0,31116.0,0.13632608]
[1609762790429,0.8440379,31150.0,31116.0,0.13632608]
[1609762790630,0.8440379,31150.0,31131.0,0.13632608]
[1609762791231,0.84396403,31153.0,31131.0,0.13632608]
[1609762792632,0.13632608,31139.0,31137.0,0.13632608]
[1609762793231,0.1488,31147.0,31137.0,0.13632608]
[1609762795633,0.1488,31147.0,31128.0,0.15807]
[1609762795833,0.1488,31147.0,31121.0,0.11694]
[1609762796033,5.37828641,31141.0,31101.0,5.2998]
[1609762797440,5.37828641,31141.0,31117.0,0.13632608]
[1609762797638,5.37828641,31141.0,31117.0,0.27663608]
[1609762799241,5.37828641,31141.0,31117.0,0.14031]
[1609762800042,0.13632608,31118.0,31117.0,0.14031]
[1609762800441,4.9158,31135.0,31117.0,0.14031]
[1609762801343,0.10926,31136.0,31117.0,0.14031]
[1609762801746,4.0411,31123.0,31117.0,0.14031]
[1609762801943,0.11568,31127.0,31068.0,1.7597637]
[1609762802143,0.13632608,31095.0,31094.0,0.15449]
[1609762802544,4.85342608,31095.0,31094.0,0.15449]
[1609762802943,4.7171,31095.0,31094.0,0.15449]
[1609762804143,4.85342608,31095.0,31094.0,0.15449]
[1609762804544,4.85342608,31095.0,31094.0,0.25059]
[1609762804746,4.5584433,31095.0,31094.0,0.15449]
[1609762805446,0.13632608,31095.0,31094.0,0.15449]
[1609762805846,0.13632608,31095.0,31094.0,0.25129]
[1609762806049,0.13632608,31095.0,31094.0,0.15449]
[1609762807248,0.13632608,31095.0,31043.0,1.76442701]
[1609762807654,0.13632608,31095.0,31068.0,4.1579]
[1609762808053,0.13632608,31095.0,31067.0,3.8776]
[1609762808353,0.0964,31121.0,31067.0,3.8776]
[1609762808554,0.0964,31121.0,31072.0,0.23024]
[1609762808855,0.13632608,31093.0,31090.0,0.13632608]
[1609762809254,3.7805,31123.0,31090.0,0.13632608]
[1609762809454,3.7805,31123.0,31091.0,0.14653]
[1609762810055,0.83670483,31142.0,31091.0,0.14653]
[1609762810257,4.8679,31138.0,31091.0,0.14653]
[1609762810856,0.0954,31130.0,31091.0,0.14653]
[1609762811054,0.8249,31126.0,31106.0,0.13632608]
[1609762811254,0.8249,31126.0,31106.0,0.27607608]
[1609762812256,0.8249,31126.0,31106.0,0.13975]
[1609762812956,0.13632608,31107.0,31106.0,0.13975]
[1609762814958,0.13632608,31107.0,31106.0,0.23715]
[1609762815459,0.0971,31121.0,31106.0,0.13975]
[1609762815860,0.0967,31124.0,31106.0,0.13975]
[1609762816060,0.0967,31124.0,31107.0,0.0963]
[1609762816960,0.0967,31124.0,31106.0,0.13975]
[1609762817161,0.8249,31126.0,31112.0,0.13632608]
[1609762818163,0.0951,31125.0,31112.0,0.13632608]
[1609762818363,0.0976,31124.0,31106.0,0.13975]
[1609762818564,0.0976,31124.0,31100.0,0.0965]
[1609762819065,0.0976,31124.0,31107.0,0.13632608]
[1609762819265,0.0976,31124.0,31107.0,0.29520608]
[1609762819466,0.0976,31124.0,31107.0,0.15888]
[1609762821169,0.13632608,31108.0,31107.0,0.15888]
[1609762821367,0.0976,31122.0,31107.0,0.15888]
[1609762821567,0.0976,31124.0,31107.0,0.15888]
[1609762821767,0.1393,31125.0,31108.0,0.0972]
[1609762822368,0.3943,31140.0,31108.0,0.0972]
[1609762822567,0.3943,31140.0,31107.0,0.15888]
[1609762822869,0.2972,31140.0,31107.0,0.15888]
[1609762823070,0.13632608,31113.0,31109.0,0.13632608]
[1609762824875,0.13632608,31113.0,31110.0,0.0964]
[1609762825076,0.13632608,31113.0,31109.0,0.13632608]
[1609762825676,0.13632608,31113.0,31107.0,0.15888]
[1609762825978,0.13632608,31113.0,31103.0,5.1952]
[1609762826178,0.2972,31140.0,31103.0,5.1952]
[1609762826379,0.2972,31140.0,31103.0,5.30739]
[1609762826980,0.2972,31140.0,31103.0,0.11219]
[1609762827188,4.6242,31132.0,31110.0,0.10129]
[1609762827394,0.0973,31131.0,31110.0,0.10129]
[1609762828784,4.6382,31132.0,31110.0,0.10129]
[1609762829081,0.13632608,31111.0,31110.0,0.10129]
[1609762831383,0.23352608,31111.0,31110.0,0.10129]
[1609762831585,0.81112608,31111.0,31110.0,0.10129]
[1609762831785,0.71392608,31111.0,31110.0,0.10129]
[1609762832383,0.71392608,31111.0,31103.0,0.11219]
[1609762832785,0.71392608,31111.0,31069.0,1.79153506]
[1609762833187,0.5776,31111.0,31096.0,0.13632608]
[1609762833585,0.0972,31110.0,31096.0,0.24582608]
[1609762834687,0.5776,31111.0,31096.0,0.24582608]
[1609762835087,0.13632608,31097.0,31096.0,0.24582608]
[1609762836789,0.13632608,31097.0,31096.0,0.1095]
[1609762837189,0.88772608,31097.0,31096.0,0.1095]
[1609762837990,0.23122608,31097.0,31096.0,0.1095]
[1609762838690,0.23122608,31097.0,31078.0,5.1024]
[1609762839292,0.23122608,31097.0,31083.0,0.13632608]
[1609762839293,4.1943,31092.0,31083.0,0.13632608]
[1609762839492,4.1943,31092.0,31083.0,0.11594]
[1609762840393,0.0954,31091.0,31083.0,0.11594]
[1609762842297,0.0949,31097.0,31083.0,0.11594]
[1609762842496,0.0972,31103.0,31083.0,0.11594]
[1609762843096,0.07868641,32997.0,31083.0,0.11594]
[1609762843297,6.30597334,31132.0,31094.0,0.13632608]
[1609762843500,1.26403401,31117.0,31094.0,0.26319608]
[1609762843698,0.79662242,31114.0,31094.0,0.26319608]
[1609762844298,0.79662242,31114.0,31094.0,0.12687]
[1609762845000,0.58422536,31112.0,31094.0,0.12687]
[1609762845199,0.13632608,31095.0,31094.0,0.22257]
[1609762845400,0.23182608,31095.0,31094.0,0.22257]
[1609762845599,0.23182608,31095.0,31094.0,0.12687]
[1609762848301,0.0976,31100.0,31094.0,0.12687]
[1609762848504,0.5841315,31110.0,31093.0,0.13632608]
[1609762848703,0.5841315,31110.0,31094.0,0.10778]
[1609762849305,0.5841315,31110.0,31104.0,0.13632608]
[1609762849505,0.5841315,31110.0,31104.0,0.26735608]
[1609762850506,0.85663537,31114.0,31104.0,0.26735608]
[1609762850507,0.58402688,31114.0,31104.0,0.26735608]
[1609762851306,0.13632608,31105.0,31104.0,0.26735608]
[1609762851506,0.58402688,31114.0,31104.0,0.26735608]
[1609762851708,0.58397159,31116.0,31104.0,0.26735608]
[1609762852307,0.58397159,31116.0,31114.0,0.17128]
[1609762853307,0.13632608,31115.0,31114.0,0.17128]
[1609762857518,0.70229073,31130.0,31114.0,0.17128]
[1609762857914,0.10898641,33294.0,31114.0,0.17128]
[1609762857915,0.70222245,31129.0,31114.0,0.17128]
[1609762859016,0.70261163,31132.0,31114.0,0.17128]
[1609762859417,0.70261163,31132.0,31118.0,0.13632608]
[1609762860518,5.17419247,31134.0,31118.0,0.13632608]
[1609762861518,5.17419247,31134.0,31124.0,0.26375608]
[1609762862219,4.4715,31134.0,31124.0,0.26375608]
[1609762862719,0.0964,31133.0,31124.0,0.26375608]
[1609762862918,4.4715,31134.0,31124.0,0.26375608]
[1609762863519,0.13632608,31125.0,31124.0,0.12743]
[1609762866625,0.13632608,31125.0,31118.0,0.13632608]
[1609762867427,0.70225723,31135.0,31118.0,0.13632608]
[1609762867626,0.70150785,31136.0,31118.0,0.13632608]
[1609762869128,0.70154047,31139.0,31118.0,0.13632608]
[1609762869530,0.70154047,31139.0,31125.0,0.25631608]
[1609762870629,0.70154047,31139.0,31125.0,0.11999]
[1609762871130,0.70089925,31142.0,31125.0,0.11999]
[1609762871530,0.70089925,31142.0,31137.0,0.13632608]
[1609762871931,0.70089925,31142.0,31137.0,0.29024608]
[1609762873533,0.13632608,31138.0,31137.0,0.29024608]
[1609762874837,0.70077001,31148.0,31137.0,0.29024608]
[1609762875045,0.69928605,31154.0,31137.0,0.38524608]
[1609762875241,0.69928605,31154.0,31137.0,0.15392]
[1609762875642,0.83561213,31154.0,31140.0,0.13632608]
[1609762876241,0.69905848,31158.0,31137.0,0.15392]
[1609762876840,0.69905848,31158.0,31140.0,4.1858]
[1609762877242,1.08731645,31169.0,31140.0,4.32107]
[1609762877243,0.69900813,31169.0,31140.0,4.32107]
[1609762877641,0.13632608,31164.0,31140.0,4.45739608]
[1609762878040,0.69900813,31169.0,31140.0,4.45739608]
[1609762878641,0.69900813,31169.0,31140.0,0.27159608]
[1609762878842,0.69877744,31173.0,31140.0,0.27159608]
[1609762879443,0.69877744,31173.0,31150.0,3.9706]
[1609762879643,0.69877744,31173.0,31168.0,0.13632608]
[1609762879843,0.69877744,31173.0,31168.0,0.25043608]
[1609762880743,0.13632608,31179.0,31168.0,0.25043608]
[1609762881645,0.13632608,31179.0,31178.0,0.13632608]
[1609762881845,0.13632608,31179.0,31178.0,0.29708608]
[1609762882244,0.13632608,31179.0,31178.0,0.16076]
[1609762882446,0.0975,31197.0,31178.0,0.16076]
[1609762883747,0.13632608,31179.0,31178.0,0.16076]
[1609762884852,0.0975,31197.0,31178.0,0.16076]
[1609762885450,0.0947,31201.0,31179.0,0.6536]
[1609762885650,0.0947,31201.0,31183.0,0.13632608]
[1609762887660,0.0947,31201.0,31191.0,0.13632608]
[1609762887858,0.14167,31204.0,31191.0,0.13632608]
[1609762888258,0.278,31212.0,31191.0,0.13632608]
[1609762889458,0.0973,31211.0,31191.0,0.13632608]
[1609762889859,0.13632608,31192.0,31190.0,0.14804]
[1609762891769,0.13632608,31192.0,31190.0,0.28436608]
[1609762892764,0.13632608,31192.0,31190.0,0.14804]
[1609762892963,0.096,31191.0,31190.0,0.14804]
[1609762893162,0.096,31191.0,31172.0,0.0172]
[1609762893163,0.096,31191.0,31181.0,0.11351]
[1609762893363,4.655,31183.0,31181.0,0.04751]
[1609762893764,0.13632608,31182.0,31181.0,0.03211]
[1609762893964,0.13632608,31182.0,31168.0,0.09907]
[1609762894164,0.13632608,31182.0,31150.0,5.15031]
[1609762894464,0.23122608,31182.0,31150.0,5.15031]
[1609762894866,0.13632608,31182.0,31137.0,2.16467809]
[1609762895069,0.13632608,31182.0,31156.0,3.6621]
[1609762895270,4.047,31213.0,31156.0,3.78997]
[1609762895867,4.047,31213.0,31179.0,0.13632608]
[1609762896068,0.3826,31200.0,31179.0,0.13632608]
[1609762897070,0.287,31200.0,31179.0,0.13632608]
[1609762897469,0.287,31200.0,31176.0,0.1228]
[1609762897870,0.13632608,31178.0,31176.0,0.1228]
[1609762899869,0.13632608,31178.0,31177.0,0.13632608]
[1609762900669,0.13632608,31178.0,31177.0,4.86732608]
[1609762901069,0.287,31200.0,31177.0,4.86732608]
[1609762901469,0.287,31200.0,31177.0,4.731]
[1609762901670,0.3833,31200.0,31177.0,4.731]
[1609762901871,0.13632608,31183.0,31181.0,0.13632608]
[1609762902272,0.11892608,31183.0,31181.0,0.13632608]
[1609762902974,0.11892608,31183.0,31176.0,0.1228]
[1609762903172,0.11892608,31183.0,31164.0,0.0958]
[1609762903373,4.1339,31178.0,31165.0,0.0965]
[1609762903574,4.1339,31178.0,31158.0,0.0865]
[1609762903774,4.1339,31178.0,31118.0,0.2979]
[1609762903974,4.1339,31178.0,31150.0,0.0961]
[1609762904173,4.1339,31178.0,31118.0,0.2979]
[1609762904373,4.25499,31178.0,31128.0,1.69523817]
[1609762904573,4.25499,31178.0,31158.0,0.13632608]
[1609762904774,0.12109,31178.0,31158.0,0.13632608]
[1609762904973,4.5916,31170.0,31158.0,0.13632608]
[1609762905873,0.12109,31178.0,31158.0,0.13632608]
[1609762906073,0.12109,31178.0,31157.0,0.12055]
[1609762906476,0.13632608,31173.0,31171.0,0.13632608]
[1609762906877,0.12109,31178.0,31171.0,0.13632608]
[1609762907275,0.16045,31186.0,31171.0,0.13632608]
[1609762907674,3.6457,31196.0,31171.0,0.13632608]
[1609762908475,3.6457,31196.0,31184.0,0.13632608]
[1609762909075,0.095,31202.0,31184.0,0.28947608]
[1609762909275,0.095,31201.0,31184.0,0.28947608]
[1609762909478,0.095,31202.0,31184.0,0.28947608]
[1609762910076,0.095,31202.0,31184.0,0.38607608]
[1609762910280,0.095,31202.0,31184.0,0.15315]
[1609762910488,0.2756,31203.0,31184.0,0.15315]
[1609762910689,0.13632608,31185.0,31184.0,0.15315]
[1609762910892,0.0956,31191.0,31184.0,0.15315]
[1609762911880,0.1916,31191.0,31184.0,0.15315]
[1609762912081,0.1916,31191.0,31185.0,0.0951]
[1609762912480,0.1916,31191.0,31188.0,0.13632608]
[1609762912881,0.1916,31191.0,31184.0,0.15315]
[1609762914080,0.1916,31191.0,31167.0,4.0164]
[1609762914679,0.13632608,31185.0,31184.0,0.13632608]
[1609762914879,0.23332608,31185.0,31184.0,0.13632608]
[1609762915079,0.13632608,31185.0,31184.0,0.13632608]
[1609762915579,0.13632608,31185.0,31167.0,4.0164]
[1609762915580,0.1916,31191.0,31167.0,4.0164]
[1609762916380,0.1916,31191.0,31168.0,0.0964]
[1609762916579,0.1916,31191.0,31190.0,0.13632608]
[1609762916781,0.13632608,31194.0,31190.0,0.29723608]
[1609762918082,0.0974,31201.0,31190.0,0.29723608]
[1609762918683,0.0974,31201.0,31197.0,0.13632608]
[1609762919284,0.0974,31201.0,31190.0,0.16091]
[1609762919786,0.0958,31202.0,31190.0,0.16091]
[1609762919985,0.0958,31209.0,31190.0,0.16091]
[1609762920586,0.0958,31209.0,31192.0,0.13632608]
[1609762920984,0.0957,31208.0,31192.0,0.13632608]
[1609762921185,0.0958,31209.0,31192.0,0.13632608]
[1609762921589,0.0958,31209.0,31190.0,0.16091]
[1609762921889,0.0958,31209.0,31165.0,0.09993]
[1609762922089,3.8289,31205.0,31166.0,0.0959]
[1609762922288,0.0974,31204.0,31158.0,0.2951]
[1609762922689,0.0974,31204.0,31154.0,3.756]
[1609762923191,0.0974,31204.0,31175.0,0.13632608]
[1609762923391,0.0974,31204.0,31175.0,0.27731608]
[1609762925293,0.0974,31204.0,31187.0,0.13632608]
[1609762925491,0.0974,31208.0,31187.0,0.13632608]
[1609762925693,0.0974,31208.0,31187.0,0.26671608]
[1609762926995,0.0974,31208.0,31187.0,0.13039]
[1609762927397,0.13632608,31188.0,31187.0,0.13039]
[1609762928501,0.0973,31199.0,31187.0,0.13039]
[1609762928700,0.0973,31205.0,31187.0,0.13039]
[1609762929400,0.13632608,31188.0,31187.0,0.13039]
[1609762930302,0.01941798,31210.0,31187.0,0.13039]
[1609762930703,0.59879674,31207.0,31187.0,0.13039]
[1609762930902,0.59879674,31207.0,31185.0,4.1418]
[1609762931301,0.59879674,31207.0,31194.0,0.13632608]
[1609762931503,0.59879674,31207.0,31194.0,0.25749608]
[1609762932403,0.84955011,31211.0,31194.0,0.25749608]
[1609762932404,0.01949482,31211.0,31194.0,0.25749608]
[1609762933205,0.57924709,31212.0,31194.0,0.25749608]
[1609762933206,0.60191744,31210.0,31194.0,0.25749608]
[1609762933405,0.13632608,31195.0,31194.0,0.35449608]
[1609762933605,0.13632608,31195.0,31194.0,0.25749608]
[1609762935910,0.13632608,31195.0,31194.0,0.35369608]
[1609762936311,0.01959829,31210.0,31194.0,0.25749608]
[1609762937412,0.01959829,31210.0,31201.0,0.13632608]
[1609762937611,0.01959829,31210.0,31201.0,0.26857608]
[1609762938715,0.0195796,31211.0,31201.0,0.26857608]
[1609762939315,0.0195796,31211.0,31210.0,0.13632608]
[1609762939515,0.0195796,31211.0,31210.0,0.29195608]
[1609762940316,0.07868641,31215.0,31210.0,0.29195608]
[1609762941316,0.13632608,31211.0,31210.0,0.29195608]
[1609762941517,0.13632608,31211.0,31210.0,0.38885608]
[1609762942317,0.13632608,31211.0,31210.0,0.29195608]
[1609762943417,0.13632608,31211.0,31210.0,0.38665608]
[1609762943617,0.13632608,31211.0,31210.0,0.25033]
[1609762944018,0.13632608,31211.0,31210.0,0.15563]
[1609762944619,0.13632608,31211.0,31201.0,0.13225]
[1609762945019,0.13632608,31211.0,31194.0,0.12117]
[1609762945219,0.13632608,31211.0,31182.0,4.7143]
[1609762945419,0.07868641,31215.0,31208.0,0.13632608]
[1609762945619,0.07868641,31215.0,31209.0,0.0957]
[1609762945819,0.07868641,31215.0,31209.0,0.23985]
[1609762946221,0.07868641,31215.0,31209.0,0.14415]
[1609762947423,0.13632608,31210.0,31209.0,0.14415]
[1609762947624,0.70652608,31210.0,31209.0,0.14415]
[1609762947824,0.70652608,31210.0,31202.0,0.12841]
[1609762948525,0.80232608,31210.0,31202.0,0.12841]
[1609762949327,0.13632608,31203.0,31202.0,0.12841]
[1609762950927,0.13632608,31203.0,31202.0,0.22591]
[1609762951329,0.13632608,31203.0,31202.0,0.26473608]
[1609762952829,0.07868641,31215.0,31202.0,0.22411]
[1609762953429,0.13632608,31209.0,31208.0,0.13632608]
[1609762953629,0.07868641,31215.0,31178.0,0.0962]
[1609762953829,0.07868641,31215.0,31169.0,4.5494]
[1609762954029,0.07868641,31215.0,31169.0,0.2987]
[1609762954230,0.07868641,31215.0,31181.0,5.153]
[1609762954430,0.07868641,31215.0,31181.0,5.29638]
[1609762955330,0.07868641,31215.0,31209.0,0.13632608]
[1609762955732,0.07868641,31215.0,31209.0,0.27300608]
[1609762956533,0.03,31214.0,31209.0,0.27300608]
[1609762956732,0.03,31214.0,31210.0,0.0969]
[1609762957335,0.13632608,31211.0,31210.0,0.0969]
[1609762958335,0.13632608,31211.0,31209.0,0.27300608]
[1609762958937,0.13632608,31211.0,31209.0,0.13668]
[1609762959540,0.13632608,31211.0,31209.0,0.27300608]
[1609762959840,0.03,31214.0,31209.0,0.27300608]
[1609762961238,0.03,31214.0,31210.0,0.0963]
[1609762961439,0.03,31214.0,31211.0,0.13632608]
[1609762963441,0.13632608,31213.0,31211.0,0.13632608]
[1609762966442,0.13632608,31213.0,31212.0,0.0975]
[1609762967644,0.13632608,31213.0,31211.0,0.13632608]
[1609762968445,0.13632608,31213.0,31209.0,0.13668]
[1609762968646,4.079,31212.0,31181.0,3.90068]
[1609762968846,0.02,31212.0,31181.0,0.13238]
[1609762969246,5.2635,31204.0,31181.0,0.13238]
[1609762969448,5.2635,31204.0,31200.0,0.13632608]
[1609762969647,5.2635,31204.0,31201.0,0.0947]
[1609762969949,0.04,31212.0,31202.0,0.0965]
[1609762970247,0.0958,31211.0,31202.0,0.0965]
[1609762970749,0.04,31212.0,31202.0,0.0965]
[1609762971550,0.13632608,31203.0,31202.0,0.0965]
[1609762972049,0.13632608,31203.0,31201.0,0.19791]
[1609762972050,0.13632608,31203.0,31201.0,0.10321]
[1609762972453,0.13632608,31203.0,31164.0,1.39088324]
[1609762972652,0.23312608,31203.0,31164.0,1.39088324]
[1609762972852,3.6813,31173.0,31164.0,1.51270324]
[1609762973051,0.13632608,31203.0,31164.0,1.51270324]
[1609762973251,0.1379,31197.0,31165.0,0.0951]
[1609762973453,0.13632608,31166.0,31165.0,0.0951]
[1609762973854,3.81862608,31166.0,31164.0,0.12182]
[1609762974052,3.91352608,31166.0,31164.0,0.12182]
[1609762974753,3.91352608,31166.0,31164.0,0.05672]
[1609762974957,3.91352608,31166.0,31134.0,4.6641]
[1609762975154,0.23122608,31166.0,31127.0,1.74940759]
[1609762975555,0.13632608,31128.0,31127.0,1.74940759]
[1609762975758,0.2867,31175.0,31127.0,1.84570759]
[1609762976158,0.0139913,31161.0,31127.0,0.0963]
[1609762976357,3.6145,31128.0,31127.0,0.0963]
[1609762976557,3.935,31128.0,31127.0,0.0963]
[1609762976757,4.0312,31128.0,31127.0,0.0963]
[1609762977059,4.0312,31128.0,31121.0,0.0968]
[1609762977460,0.0962,31128.0,31121.0,0.0968]
[1609762977659,4.8171,31122.0,31121.0,0.0968]
[1609762977859,4.8171,31122.0,31101.0,0.0966]
[1609762978060,4.8171,31122.0,31099.0,0.0968]
[1609762978261,4.8171,31122.0,31099.0,0.25631]
[1609762978460,0.0962,31128.0,31099.0,0.15951]
[1609762978663,4.443,31112.0,31099.0,0.15951]
[1609762979063,4.443,31112.0,31111.0,0.14897]
[1609762979663,4.443,31112.0,31111.0,7e-05]
[1609762981467,0.0973,31118.0,31111.0,0.09657]
[1609762981664,0.13632608,31112.0,31111.0,0.09657]
[1609762981866,0.23122608,31112.0,31111.0,0.09657]
[1609762982269,0.87492608,31112.0,31111.0,0.09657]
[1609762982466,0.87492608,31112.0,31111.0,0.08817]
[1609762982667,0.87492608,31112.0,31111.0,0.07937]
[1609762982868,0.87492608,31112.0,31099.0,0.15951]
[1609762983365,0.87492608,31112.0,31045.0,1.67338235]
[1609762983565,0.7386,31112.0,31095.0,0.13632608]
[1609762983867,0.7386,31112.0,31096.0,0.0954]
[1609762984267,0.7386,31112.0,31095.0,0.27034608]
[1609762984467,0.6437,31112.0,31096.0,0.0971]
[1609762984667,0.0146,31111.0,31096.0,0.0971]
[1609762985468,0.0146,31111.0,31095.0,0.27034608]
[1609762985668,0.0146,31111.0,31110.0,0.13632608]
[1609762985868,0.0146,31111.0,31110.0,0.29047608]
[1609762986169,0.0146,31111.0,31110.0,0.15415]
[1609762987571,0.24682608,31111.0,31110.0,0.15415]
[1609762987970,0.24682608,31111.0,31110.0,0.25135]
[1609762988171,0.15092608,31111.0,31110.0,0.15415]
[1609762990974,0.15092608,31111.0,31095.0,0.13402]
[1609762991175,0.15092608,31111.0,31072.0,0.0978]
[1609762991677,0.13632608,31101.0,31097.0,0.13632608]